bitfinex-derivatives/quotes_ETHF0:USTF0_20250626
["timestamp","ask_amount","ask_price","bid_price","bid_amount"]
[1750954951960,3.2078,2425.1,2425.0,0.8244]
[1750954952166,4.18393022,2425.1,2425.0,0.8244]
[1750954952467,4.03216,2425.1,2425.0,0.8244]
[1750954952666,3.2078,2425.1,2425.0,0.8244]
[1750954952967,4.03216,2425.1,2425.0,0.8244]
[1750954953267,0.8244,2425.0,2424.9,2.2586]
[1750954953467,0.8244,2425.0,2424.9,0.8244]
[1750954953759,3.2078,2425.1,2424.9,0.8244]
[1750954953957,4.03218,2425.1,2424.9,0.82441]
[1750954954359,0.8244,2425.0,2424.9,3.42779217]
[1750954954560,0.82443,2424.9,2424.8,6.637]
[1750954954870,3.2078,2425.1,2424.7,6.638]
[1750954954871,0.82446,2424.8,2424.7,6.638]
[1750954955070,1.52136,2424.8,2424.7,6.638]
[1750954955362,4.72916,2424.8,2424.7,6.638]
[1750954955572,0.82457,2424.5,2424.4,4.25236217]
[1750954955763,0.82455,2424.6,2424.5,0.82456]
[1750954956066,0.82455,2424.6,2424.4,10.89037217]
[1750954956266,0.82457,2424.5,2424.4,10.89037217]
[1750954956470,2.0613,2424.7,2424.3,4.25242217]
[1750954956673,0.82457,2424.5,2424.4,7.4626]
[1750954956970,3.9047,2424.8,2424.5,0.82454]
[1750954957158,0.82457,2424.5,2424.4,10.89037217]
[1750954957363,0.82457,2424.5,2424.4,10.06579217]
[1750954957665,0.82457,2424.5,2424.4,6.638]
[1750954957865,0.82457,2424.5,2424.4,10.89039217]
[1750954958664,0.8246,2424.4,2424.3,10.89041217]
[1750954958865,0.8246,2424.4,2424.3,10.06579217]
[1750954959065,0.8246,2424.4,2424.3,10.89042217]
[1750954959267,0.8246,2424.4,2424.3,6.638]
[1750954959765,0.82467,2424.2,2424.1,6.638]
[1750954960068,0.82467,2424.2,2424.1,10.06579217]
[1750954960371,0.6726,2424.3,2424.2,0.82467]
[1750954961362,0.6726,2424.3,2424.1,12.33427217]
[1750954961562,0.82467,2424.2,2424.1,12.33427217]
[1750954961759,1.49726,2424.3,2424.1,12.33427217]
[1750954962170,0.6726,2424.3,2424.1,12.33427217]
[1750954962560,1.49723,2424.3,2424.2,0.82467]
[1750954962766,0.6726,2424.3,2424.2,0.82467]
[1750954963166,0.82461,2424.4,2424.3,0.82463]
[1750954963370,0.82461,2424.4,2424.3,4.25242217]
[1750954963565,0.82461,2424.4,2424.3,3.42779217]
[1750954964674,0.82461,2424.4,2424.3,4.25242217]
[1750954965073,0.82464,2424.3,2424.2,0.82465]
[1750954965273,2.16584,2424.3,2424.2,0.82465]
[1750954965469,1.3412,2424.3,2424.2,0.82465]
[1750954965966,0.6629,2424.3,2424.2,0.82465]
[1750954966270,0.6623,2424.6,2424.5,0.82457]
[1750954966466,0.6623,2424.6,2424.4,3.42779217]
[1750954966775,1.48685,2424.6,2424.5,0.82457]
[1750954966977,1.48683,2424.6,2424.5,0.82457]
[1750954967378,2.46240415,2424.6,2424.5,0.82457]
[1750954967681,1.63787415,2424.6,2424.5,0.82457]
[1750954967878,0.97557415,2424.6,2424.5,0.82457]
[1750954968080,3.8701,2425.1,2425.0,0.8244]
[1750954968288,3.8701,2425.1,2425.0,4.25219217]
[1750954968289,4.84575432,2425.1,2425.0,4.25219217]
[1750954969379,1.63795432,2425.1,2425.0,4.25219217]
[1750954969773,1.63795432,2425.1,2424.8,10.06679217]
[1750954969979,3.2078,2424.9,2424.7,10.06679217]
[1750954970179,0.97565432,2424.8,2424.7,5.62747217]
[1750954970873,0.82441,2425.0,2424.9,0.82443]
[1750954971080,0.82441,2425.0,2424.9,3.42779217]
[1750954971280,0.82441,2425.0,2424.9,4.25222217]
[1750954971682,0.6623,2425.1,2425.0,0.8244]
[1750954971683,1.48669,2425.1,2425.0,0.8244]
[1750954971884,0.6623,2425.1,2425.0,2.1549]
[1750954972178,1.48666,2425.1,2425.0,2.1549]
[1750954972387,1.63621778,2425.1,2425.0,2.1549]
[1750954972781,2.46057778,2425.1,2425.0,1.3305]
[1750954972980,2.46057778,2425.1,2424.9,10.89120217]
[1750954973182,1.48666,2425.1,2424.9,10.89120217]
[1750954973393,0.8244,2425.0,2424.9,6.639]
[1750954973604,1.79863528,2425.0,2424.9,6.639]
[1750954974498,5.00643528,2425.0,2424.9,6.639]
[1750954975803,2.06109,2424.9,2424.3,2.4439788]
[1750954976109,0.82463,2424.4,2424.3,3.42779217]
[1750954976407,0.82463,2424.4,2424.3,4.82509217]
[1750954977807,0.82463,2424.4,2424.3,5.64972217]
[1750954978101,0.82457,2424.5,2424.4,0.82459]
[1750954978292,0.82457,2424.5,2424.4,2.20449]
[1750954978499,0.82456,2424.6,2424.4,2.20449]
[1750954978905,0.7003,2424.7,2424.4,1.3799]
[1750954979106,0.82457,2424.5,2424.4,1.3799]
[1750954981109,0.6934,2424.6,2424.2,58.5779788]
[1750954981110,0.82463,2424.3,2424.2,58.5779788]
[1750954981495,0.82463,2424.3,2424.2,56.134]
[1750954981908,0.82463,2424.3,2424.2,57.508]
[1750954982509,0.6934,2424.6,2424.4,0.82459]
[1750954982810,0.82454,2424.6,2424.5,0.82457]
[1750954983004,0.82454,2424.6,2424.5,7.45957]
[1750954983303,0.82454,2424.6,2424.5,6.635]
[1750954983500,0.82454,2424.6,2424.5,7.45957]
[1750954983706,0.82454,2424.6,2424.5,6.635]
[1750954984208,0.82454,2424.6,2424.5,8.0859]
[1750954985011,0.82454,2424.6,2424.5,8.91047]
[1750954985510,1.52482,2424.7,2424.6,0.82453]
[1750954985710,0.82441,2425.0,2424.8,0.82444]
[1750954986006,0.82441,2425.0,2424.9,1.4509]
[1750954986206,1.79942325,2425.0,2424.9,1.4509]
[1750954989304,1.79942325,2425.0,2424.9,2.27533]
[1750954989504,1.79942325,2425.0,2424.9,1.4509]
[1750954991912,1.79942325,2425.0,2424.9,2.27533]
[1750954992714,1.79942325,2425.0,2424.9,1.4509]
[1750954995303,0.82443,2424.9,2424.8,6.635]
[1750954995515,2.50394325,2424.9,2424.8,6.635]
[1750954998313,2.50394325,2424.9,2424.8,10.06300629]
[1750955000017,2.50394325,2424.9,2424.8,11.40920629]
[1750955000416,3.2804285,2425.6,2425.2,0.82433]
[1750955000619,9.85391449,2426.2,2426.1,0.82402]
[1750955000917,0.82387,2426.6,2426.2,0.82397]
[1750955001122,0.6868,2426.8,2426.5,3.42800629]
[1750955001319,3.9341,2426.9,2426.7,3.42800629]
[1750955001523,3.2078,2427.2,2426.8,4.25426875]
[1750955001818,3.2078,2427.2,2427.1,0.82368]
[1750955002127,24.60321376,2427.9,2427.1,0.82368]
[1750955002128,24.60321376,2427.9,2427.1,61.12680629]
[1750955002313,8.20107125,2428.5,2428.2,0.8233]
[1750955002509,8.20107125,2428.5,2428.3,38.55892054]
[1750955002719,8.20107125,2428.5,2428.4,6.635]
[1750955003115,0.82319,2428.6,2428.4,6.635]
[1750955003313,0.7241,2428.9,2428.4,6.635]
[1750955003613,3.2078,2429.0,2428.8,0.82311]
[1750955003814,8.20107125,2429.1,2428.9,13.09392054]
[1750955004017,3.2078,2429.4,2429.0,0.82302]
[1750955004214,3.2078,2429.4,2429.3,6.46092054]
[1750955004422,3.2078,2429.4,2429.3,13.09392054]
[1750955004620,3.2078,2429.4,2429.3,6.633]
[1750955004819,3.2078,2429.4,2429.3,13.09392054]
[1750955005022,4.0307,2429.4,2429.3,6.633]
[1750955005217,4.0307,2429.4,2429.2,25.494]
[1750955005218,0.82299,2429.2,2429.1,25.494]
[1750955005422,0.82299,2429.2,2429.1,32.127]
[1750955005624,3.2078,2429.4,2429.0,6.633]
[1750955005817,0.82301,2429.1,2429.0,6.633]
[1750955006120,4.03081,2429.1,2429.0,6.633]
[1750955006517,0.82311,2428.8,2428.7,6.63]
[1750955006916,0.82311,2428.8,2428.7,5.69704]
[1750955007122,4.03091,2428.8,2428.7,5.69704]
[1750955009520,2.05788,2428.7,2428.0,59.14272054]
[1750955009726,0.82334,2428.1,2428.0,84.64172054]
[1750955009922,0.82334,2428.1,2428.0,91.33772054]
[1750955010125,3.2078,2428.4,2428.0,97.16107054]
[1750955010427,4.03106,2428.4,2428.3,6.46092054]
[1750955010629,3.2078,2428.4,2428.3,7.28420054]
[1750955010923,4.03095,2428.7,2428.3,7.28420054]
[1750955011124,4.03095,2428.7,2428.6,6.46092054]
[1750955011426,0.8232,2428.6,2428.4,32.2]
[1750955011723,0.82321,2428.5,2428.4,33.5692]
[1750955012428,0.82321,2428.5,2428.4,33.16763062]
[1750955013316,0.82319,2428.6,2428.4,33.16763062]
[1750955013828,3.8907,2429.0,2428.6,0.82317]
[1750955014030,0.82313,2428.8,2428.6,6.46092054]
[1750955014525,0.82308,2428.9,2428.6,6.46092054]
[1750955014731,4.03087,2429.0,2428.6,8.63409054]
[1750955014927,3.2078,2429.0,2428.6,8.63409054]
[1750955015123,4.03073,2429.4,2428.9,7.28397054]
[1750955015328,4.03073,2429.4,2429.3,6.46092054]
[1750955015528,4.03073,2429.4,2429.3,5.79177439]
[1750955015934,3.2078,2429.4,2429.3,5.79177439]
[1750955016327,3.2078,2429.4,2429.3,6.61471439]
[1750955019735,3.9237,2429.8,2429.7,0.8228]
[1750955019934,4.03057,2429.8,2429.7,6.693]
[1750955021135,3.2078,2429.8,2429.7,7.5158]
[1750955022237,4.03057,2429.8,2429.7,6.693]
[1750955022833,3.2078,2429.8,2429.7,7.5158]
[1750955023028,3.2078,2429.8,2429.7,6.693]
[1750955023237,3.2078,2429.8,2429.7,7.5158]
[1750955023443,3.2078,2429.8,2429.7,18.97672054]
[1750955023742,3.9008,2430.3,2430.2,0.82263]
[1750955023935,3.9008,2430.3,2430.2,6.691]
[1750955024334,4.7234,2430.3,2430.2,6.691]
[1750955024935,1.5156,2430.3,2430.2,6.691]
[1750955025129,4.7234,2430.3,2430.2,6.691]
[1750955025435,3.9008,2430.3,2430.2,7.51363]
[1750955025836,4.7234,2430.3,2430.2,6.691]
[1750955026040,4.7234,2430.3,2430.0,32.176]
[1750955026041,0.82267,2430.1,2430.0,32.176]
[1750955026438,1.4049,2430.2,2429.9,26.31273]
[1750955026439,0.82271,2430.0,2429.9,26.31273]
[1750955026641,4.03051,2430.0,2429.9,33.00373]
[1750955026940,4.03051,2430.0,2429.9,6.691]
[1750955027137,0.82274,2429.9,2429.8,0.82275]
[1750955027444,0.82278,2429.8,2429.7,0.82278]
[1750955027632,2.22765,2429.9,2429.8,0.82277]
[1750955027835,0.82277,2429.8,2429.7,0.82279]
[1750955028038,2.22766,2429.9,2429.8,0.82277]
[1750955028238,1.4049,2429.9,2429.8,0.82277]
[1750955028444,3.2078,2430.0,2429.9,0.82274]
[1750955034035,0.693,2430.3,2430.2,0.82263]
[1750955034036,3.9008,2430.3,2430.2,0.82263]
[1750955034237,3.9008,2430.3,2430.2,13.97355054]
[1750955035144,3.2078,2430.3,2430.2,13.97355054]
[1750955035347,3.2078,2430.6,2430.2,13.15092054]
[1750955035649,3.2078,2430.6,2430.5,0.82253]
[1750955036446,3.2078,2430.6,2430.5,7.28345054]
[1750955036642,3.2078,2430.6,2430.5,0.82253]
[1750955036841,4.5727,2430.6,2430.1,1.23443236]
[1750955037042,0.82253,2430.5,2430.3,0.82258]
[1750955037250,1.3649,2430.5,2430.4,0.82257]
[1750955037441,3.2078,2430.6,2430.5,0.82253]
[1750955040249,3.2078,2430.6,2430.5,7.28345054]
[1750955041549,3.2078,2430.6,2430.5,32.72745054]
[1750955042145,3.2078,2431.3,2430.5,40.11272054]
[1750955042351,3.2078,2431.3,2431.2,0.82229]
[1750955042550,3.2078,2431.3,2431.2,7.50529]
[1750955043045,0.7174,2431.6,2431.5,0.82219]
[1750955043350,0.7174,2431.6,2431.4,0.82222]
[1750955043657,0.82225,2431.4,2431.2,6.683]
[1750955043953,0.82225,2431.4,2431.2,7.50528]
[1750955043954,4.03005,2431.4,2431.2,7.50528]
[1750955044345,0.82226,2431.3,2431.2,6.683]
[1750955044756,0.82226,2431.3,2431.2,6.682]
[1750955044943,2.23586,2431.3,2430.7,9.89724054]
[1750955045146,3.2078,2431.1,2431.0,0.82236]
[1750955045349,3.2078,2431.1,2431.0,7.50436]
[1750955045547,4.03013,2431.1,2431.0,7.50436]
[1750955045758,3.8789,2431.1,2431.0,7.50436]
[1750955045959,3.2078,2431.1,2431.0,7.50436]
[1750955046251,3.2078,2431.4,2431.3,0.82226]
[1750955046458,3.2078,2431.4,2431.3,7.50426]
[1750955047057,3.2078,2431.4,2431.2,0.82228]
[1750955047250,3.2078,2431.4,2431.3,7.50426]
[1750955048958,3.2078,2431.4,2431.3,13.96518054]
[1750955051262,2.8305,2431.8,2431.7,0.82213]
[1750955051458,1.3819,2431.8,2431.7,0.82213]
[1750955052054,1.3819,2431.8,2431.7,7.50313]
[1750955053559,3.2078,2431.9,2431.8,0.82209]
[1750955053857,3.2078,2431.9,2431.8,2.22229]
[1750955055152,3.2078,2431.9,2431.8,27.66929]
[1750955055766,3.2078,2431.9,2431.8,28.21030652]
[1750955056059,3.2078,2431.9,2431.8,28.53671063]
[1750955056364,3.2078,2432.2,2432.1,0.82199]
[1750955056563,3.2078,2432.2,2432.1,14.50392706]
[1750955056760,4.02976,2432.2,2432.1,7.22101652]
[1750955056962,3.2078,2432.2,2432.1,0.54101652]
[1750955057162,3.2078,2432.2,2432.1,1.36300652]
[1750955057468,3.2078,2432.2,2432.1,0.54101652]
[1750955057469,4.02976,2432.2,2432.1,0.54101652]
[1750955057765,3.2078,2432.2,2432.1,1.36300652]
[1750955058065,3.2078,2432.2,2432.1,0.82199]
[1750955058269,3.2078,2432.2,2432.1,1.36329728]
[1750955061467,4.02976,2432.2,2432.1,1.36329728]
[1750955061665,4.02976,2432.2,2432.1,0.54130728]
[1750955061865,0.82199,2432.1,2432.0,0.82201]
[1750955062063,3.2078,2432.2,2432.1,0.82199]
[1750955062765,2.66649272,2432.2,2432.1,13.96191054]
[1750955062973,3.2078,2432.6,2432.5,0.82186]
[1750955063165,3.2078,2432.6,2432.5,13.96178054]
[1750955064166,3.2078,2432.9,2432.5,13.96178054]
[1750955064370,3.2078,2432.9,2432.8,7.28268054]
[1750955066169,3.2078,2432.9,2432.6,6.46092054]
[1750955066471,4.02953,2432.9,2432.7,6.678]
[1750955066670,0.82176,2432.8,2432.7,6.678]
[1750955069268,4.02955,2432.9,2432.7,7.49977]
[1750955069573,3.2078,2432.9,2432.8,0.82175]
[1750955070277,3.2078,2432.9,2432.8,33.00375]
[1750955072076,3.2078,2433.2,2433.1,0.82165]
[1750955072272,3.2078,2433.2,2433.1,7.52665]
[1750955072572,4.02942,2433.2,2433.0,7.28258054]
[1750955072776,3.2078,2433.2,2432.8,6.46092054]
[1750955072972,3.2078,2432.9,2432.5,6.46092054]
[1750955073172,0.82179,2432.7,2432.6,6.705]
[1750955073372,4.02959,2432.7,2432.6,6.705]
[1750955073782,3.2078,2432.7,2432.6,7.52682]
[1750955074077,4.5921,2432.7,2432.6,7.52682]
[1750955074679,5.41389,2432.7,2432.6,8.07076916]
[1750955075079,5.41389,2432.7,2432.6,7.24894916]
[1750955075379,0.82182,2432.6,2432.5,6.704]
[1750955075679,0.82182,2432.6,2432.0,6.46092054]
[1750955075680,1.3307,2432.6,2432.0,6.46092054]
[1750955075880,4.02972,2432.4,2432.2,0.82195]
[1750955076077,0.82193,2432.3,2432.1,0.82197]
[1750955076381,4.02971,2432.4,2432.2,6.704]
[1750955076583,0.82192,2432.3,2432.2,6.704]
[1750955077175,4.02971,2432.4,2432.2,6.704]
[1750955077577,4.02971,2432.4,2432.2,7.52594]
[1750955077777,0.82192,2432.3,2432.2,7.52594]
[1750955078183,3.2078,2432.4,2432.2,7.52594]
[1750955078380,0.82192,2432.3,2432.2,7.52594]
[1750955078681,0.82192,2432.3,2432.2,6.704]
[1750955078881,1.4108,2432.3,2432.2,7.52596]
[1750955079186,4.02969,2432.4,2432.3,0.82192]
[1750955079378,0.82192,2432.3,2432.2,7.52595]
[1750955079579,1.4108,2432.3,2432.2,7.52595]
[1750955079776,3.2078,2432.4,2432.3,0.82192]
[1750955079982,3.2078,2432.4,2432.3,7.28284054]
[1750955081383,3.2078,2432.4,2432.3,7.52692]
[1750955082292,3.2078,2432.4,2432.0,6.46092054]
[1750955082590,0.82194,2432.3,2432.2,0.82196]
[1750955082886,5.40691,2432.4,2432.3,0.82192]
[1750955083388,4.585,2432.4,2432.3,0.82192]
[1750955083690,0.82193,2432.3,2432.2,0.82195]
[1750955083883,4.585,2432.4,2432.2,0.82195]
[1750955083884,5.40691,2432.4,2432.2,0.82195]
[1750955084079,5.40691,2432.4,2432.3,0.82192]
[1750955084279,4.585,2432.4,2432.3,0.82192]
[1750955084586,5.40689,2432.4,2432.3,0.82192]
[1750955084883,5.40689,2432.4,2432.1,6.705]
[1750955084884,0.82193,2432.3,2432.2,0.82194]
[1750955085489,0.82196,2432.2,2432.1,7.52697]
[1750955085786,0.6841,2432.2,2431.8,6.705]
[1750955085989,3.2078,2431.9,2431.8,7.52709]
[1750955086886,4.02986,2431.9,2431.8,7.52709]
[1750955088082,3.2078,2431.9,2431.5,1.3822]
[1750955088283,4.02995,2431.7,2431.6,7.52715]
[1750955088688,4.02995,2431.7,2431.6,6.705]
[1750955088990,4.02995,2431.7,2431.6,7.52716]
[1750955089189,0.82218,2431.6,2431.5,7.52718]
[1750955089391,1.50228,2431.6,2431.5,7.52718]
[1750955090887,0.6801,2431.6,2431.5,7.52718]
[1750955092791,0.6801,2431.6,2431.2,50.6711]
[1750955092985,4.03005,2431.4,2431.3,6.706]
[1750955093192,0.82226,2431.3,2431.2,0.82227]
[1750955093482,0.6734,2431.3,2430.8,2.05608]
[1750955093689,3.2078,2431.1,2431.0,7.28328054]
[1750955094584,3.2078,2431.1,2431.0,8.66198054]
[1750955095090,4.03013,2431.1,2431.0,8.66198054]
[1750955095286,3.2078,2431.1,2431.0,7.52836]
[1750955095482,0.82238,2431.0,2430.8,0.82241]
[1750955095791,0.82242,2430.9,2430.7,0.82246]
[1750955095988,3.2078,2430.8,2430.7,0.82246]
[1750955097181,3.2078,2430.8,2430.7,2.15196]
[1750955098990,0.6734,2431.3,2431.2,0.8223]
[1750955099194,3.2078,2431.2,2431.1,0.82231]
[1750955099390,3.2078,2431.2,2431.1,2.04151059]
[1750955099600,3.2078,2431.2,2431.1,2.26701]
[1750955100093,3.9362,2431.5,2431.4,0.82223]
[1750955103288,3.2078,2431.5,2431.4,0.82223]
[1750955103684,3.2078,2431.5,2431.4,2.19383]
[1750955106392,2.30576,2431.5,2431.4,2.19383]
[1750955106694,3.8776,2432.7,2432.6,0.82182]
[1750955106892,4.6994,2432.7,2432.4,7.50187]
[1750955107098,3.8776,2432.7,2432.5,0.82185]
[1750955107490,4.69939,2432.7,2432.4,0.82187]
[1750955107690,0.82183,2432.6,2432.4,0.82187]
[1750955107886,10.2811,2432.7,2431.9,6.46092054]
[1750955108089,10.2811,2432.7,2432.1,0.82198]
[1750955108090,3.2078,2432.2,2432.1,0.82198]
[1750955111192,4.02976,2432.2,2432.1,0.82198]
[1750955111395,8.2078,2432.2,2431.3,2.44437154]
[1750955111699,3.2078,2431.6,2431.5,0.82219]
[1750955111885,3.2078,2431.6,2431.5,1.38833653]
[1750955112196,3.8806,2431.6,2431.5,1.38833653]
[1750955112394,4.70276,2431.6,2431.5,0.56614653]
[1750955113494,9.70276,2431.6,2431.5,0.56614653]
[1750955113991,9.70276,2431.6,2431.1,1.62958103]
[1750955113992,0.8223,2431.2,2431.1,1.22218577]
[1750955114202,0.82233,2431.1,2431.0,3.25120158]
[1750955114391,3.2078,2431.2,2431.1,0.82233]
[1750955114589,0.82233,2431.1,2430.9,4.88638198]
[1750955114996,0.82233,2431.1,2431.0,3.26698332]
[1750955115392,4.03012,2431.2,2431.0,4.08934332]
[1750955115792,0.82233,2431.1,2431.0,3.26698332]
[1750955115990,0.82236,2431.0,2430.9,3.26698332]
[1750955116195,1.53586,2431.0,2430.9,3.26698332]
[1750955116605,0.82246,2430.7,2430.5,4.88652198]
[1750955116794,3.2078,2430.8,2430.7,0.82246]
[1750955117898,4.03024,2430.8,2430.6,0.82247]
[1750955118299,4.03024,2430.8,2430.7,3.27520189]
[1750955118903,4.03024,2430.8,2430.7,0.82246]
[1750955119108,4.03024,2430.8,2430.7,2.04866168]
[1750955119298,4.03024,2430.8,2430.7,1.22620168]
[1750955120601,3.2078,2430.8,2430.7,0.82246]
[1750955121103,3.2078,2430.8,2430.5,6.46092054]
[1750955121104,3.2078,2430.8,2430.5,1.22620168]
[1750955121607,3.2078,2430.8,2430.6,0.82247]
[1750955121608,4.03026,2430.8,2430.6,0.82247]
[1750955122098,0.82247,2430.7,2430.6,0.82247]
[1750955122303,4.03026,2430.8,2430.6,0.82247]
[1750955122505,4.03026,2430.8,2430.7,0.82247]
[1750955122506,3.2078,2430.8,2430.7,0.82247]
[1750955123097,3.2078,2430.8,2430.6,7.28340054]
[1750955123307,3.2078,2430.8,2430.5,1.22620168]
[1750955123604,0.82248,2430.7,2430.5,2.04870168]
[1750955123903,3.2078,2430.8,2430.3,2.69460168]
[1750955124207,0.82257,2430.4,2430.3,1.22620168]
[1750955124509,3.2078,2430.5,2430.3,2.04879168]
[1750955124699,0.6785,2430.4,2430.1,1.22620168]
[1750955124904,4.03043,2430.2,2430.1,2.04887168]
[1750955125901,4.03043,2430.2,2430.1,0.82267]
[1750955126102,0.82267,2430.1,2430.0,2.04889168]
[1750955126407,0.82267,2430.1,2429.9,7.90720168]
[1750955126606,1.50047,2430.1,2429.9,8.72991168]
[1750955126805,0.6778,2430.1,2429.7,2.04899168]
[1750955127004,3.2078,2429.8,2429.7,2.04899168]
[1750955127310,3.2078,2429.8,2429.7,0.82279]
[1750955127506,3.2078,2429.8,2429.7,2.28129]
[1750955127697,3.2078,2429.8,2429.7,0.82279]
[1750955127903,4.03057,2429.8,2429.6,7.50382]
[1750955128200,4.03057,2429.8,2429.5,7.68712222]
[1750955128400,0.82282,2429.7,2429.5,7.50386]
[1750955128607,1.52442,2429.7,2429.5,7.50386]
[1750955129304,0.7016,2429.7,2429.6,0.82284]
[1750955129809,0.7016,2429.7,2429.6,1.3812383]
[1750955130107,1.5244,2429.7,2429.6,0.5583983]
[1750955130308,0.7016,2429.7,2429.6,1.3812383]
[1750955130703,1.5244,2429.7,2429.6,1.3812383]
[1750955131300,1.5244,2429.7,2429.6,0.5583983]
[1750955131609,0.7016,2429.7,2429.6,1.3812383]
[1750955132203,0.82284,2429.6,2429.5,7.50386]
[1750955132401,0.7016,2429.7,2429.2,6.743]
[1750955132610,4.03072,2429.4,2429.3,0.82294]
[1750955132806,5.2651,2429.4,2429.0,0.82303]
[1750955133004,4.03084,2429.1,2429.0,0.82304]
[1750955133301,3.2078,2429.1,2428.8,7.5661]
[1750955133606,1.55317,2429.0,2428.9,0.82307]
[1750955133808,1.3957,2429.0,2428.8,7.56608]
[1750955134010,1.3957,2429.0,2428.8,6.743]
[1750955134314,2.21875,2429.0,2428.9,0.82307]
[1750955134504,3.2078,2429.1,2429.0,0.82304]
[1750955134704,3.9379,2429.4,2429.3,0.82294]
[1750955135112,4.6035,2429.4,2429.3,0.82294]
[1750955135410,5.4264,2429.4,2429.3,0.82294]
[1750955135610,4.6035,2429.4,2429.0,0.82301]
[1750955135909,3.2078,2429.1,2429.0,0.82304]
[1750955136913,3.2078,2429.1,2428.8,0.82309]
[1750955137112,0.82307,2428.9,2428.8,0.82309]
[1750955137411,3.2078,2429.1,2429.0,0.82304]
[1750955138314,4.03081,2429.1,2428.9,0.82304]
[1750955138509,5.26533,2429.1,2428.5,6.743]
[1750955138717,4.03099,2428.6,2428.5,0.82321]
[1750955138907,3.2078,2428.6,2428.3,1.4445]
[1750955139107,3.2078,2428.6,2428.4,0.82323]
[1750955139308,3.2078,2428.6,2428.5,0.82321]
[1750955139908,4.03098,2428.6,2428.5,0.82321]
[1750955140311,3.2078,2428.9,2428.4,9.66872054]
[1750955140511,4.03099,2428.6,2428.5,1.4445]
[1750955141720,3.2078,2428.6,2428.3,0.82326]
[1750955142019,3.2078,2428.6,2428.1,1.3892]
[1750955142318,0.82331,2428.2,2428.1,2.21253]
[1750955142715,3.2078,2428.3,2428.2,0.82331]
[1750955142918,3.2078,2428.9,2428.2,0.82331]
[1750955143110,3.2078,2428.6,2428.5,7.28413054]
[1750955145719,3.2078,2428.6,2428.5,0.82321]
[1750955147322,3.2078,2428.6,2428.4,0.82322]
[1750955147323,0.82321,2428.5,2428.4,0.82322]
[1750955147514,4.031,2428.6,2428.4,0.82322]
[1750955148123,0.82321,2428.5,2428.3,0.82326]
[1750955148322,0.82328,2428.3,2428.2,6.747]
[1750955148522,3.2078,2428.3,2428.2,6.747]
[1750955148722,3.2078,2428.3,2428.2,7.57031]
[1750955149022,4.03108,2428.3,2428.2,6.747]
[1750955150221,3.2078,2428.3,2428.2,7.57031]
[1750955150522,1.50734,2428.4,2428.3,0.82328]
[1750955150715,0.6841,2428.4,2428.3,0.82328]
[1750955150915,0.82324,2428.5,2428.2,8.2112]
[1750955151215,3.2078,2428.6,2428.3,2.15776]
[1750955151419,0.82324,2428.4,2428.3,2.15776]
[1750955152523,0.82323,2428.5,2428.4,0.82323]
[1750955152816,4.03101,2428.6,2428.5,0.82321]
[1750955153217,4.03101,2428.6,2428.4,0.82322]
[1750955153419,0.82321,2428.5,2428.4,0.82322]
[1750955154118,4.031,2428.6,2428.5,0.82321]
[1750955154323,0.82321,2428.5,2428.4,0.82322]
[1750955154728,3.2078,2428.6,2428.4,0.82322]
[1750955154917,3.2078,2428.6,2428.5,0.82321]
[1750955155224,3.2078,2428.6,2428.5,2.28791]
[1750955155620,0.7304,2428.8,2428.7,0.82314]
[1750955155822,4.03089,2428.9,2428.5,1.4647]
[1750955156121,4.03089,2428.9,2428.7,0.82312]
[1750955156420,4.03089,2428.9,2428.5,1.4647]
[1750955156421,3.2078,2428.9,2428.8,0.82311]
[1750955156726,0.7284,2429.2,2429.1,0.82301]
[1750955156925,0.82302,2429.1,2428.7,1.22620168]
[1750955157225,0.82302,2429.1,2428.8,9.03032222]
[1750955157722,0.82304,2429.0,2428.9,0.82307]
[1750955157923,0.82307,2428.9,2428.8,1.22620168]
[1750955158222,4.70982,2429.1,2428.9,0.82305]
[1750955159020,3.8868,2429.1,2429.0,0.82304]
[1750955159329,4.70981,2429.1,2428.9,0.82305]
[1750955160223,3.8868,2429.1,2429.0,0.82304]
[1750955160426,4.70983,2429.1,2428.9,0.82306]
[1750955160725,0.82307,2428.9,2428.8,1.22620168]
[1750955161535,3.8868,2429.1,2428.8,2.04930168]
[1750955161928,3.8868,2429.1,2428.8,1.22620168]
[1750955162324,0.82304,2429.0,2428.9,1.22620168]
[1750955162722,1.4047,2429.0,2428.7,1.22620168]
[1750955162926,0.82311,2428.8,2428.7,1.22620168]
[1750955163127,4.03091,2428.8,2428.6,1.22620168]
[1750955163423,3.2078,2428.8,2428.7,2.04934168]
[1750955163633,4.03091,2428.8,2428.7,1.22620168]
[1750955163820,0.82314,2428.7,2428.6,1.22620168]
[1750955164020,1.4047,2428.7,2428.4,1.22620168]
[1750955164340,4.03101,2428.5,2428.4,1.22620168]
[1750955164716,5.43571,2428.5,2428.4,1.22620168]
[1750955164930,0.82324,2428.4,2428.3,1.22620168]
[1750955165726,0.82324,2428.4,2428.3,2.04948168]
[1750955165930,0.82326,2428.4,2428.3,0.82327]
[1750955166229,3.2078,2428.5,2428.4,0.82324]
[1750955167223,4.03102,2428.5,2428.3,1.22620168]
[1750955167424,0.82324,2428.4,2428.3,2.04947168]
[1750955167731,4.03102,2428.5,2428.4,0.82324]
[1750955168030,0.82324,2428.4,2428.3,2.04946168]
[1750955168735,4.03103,2428.5,2428.3,2.04946168]
[1750955168924,3.2078,2428.5,2428.4,0.82324]
[1750955169123,4.03101,2428.5,2428.4,0.82324]
[1750955169427,3.2078,2428.5,2428.4,0.82324]
[1750955169627,4.03101,2428.5,2428.4,1.443]
[1750955170328,3.2078,2428.5,2428.4,2.26624]